[Event "28th CRO-chT 1A-Men 2019"]
[Site "Mali Losinj"]
[Date "2019.10.05"]
[Round "8.14"]
[White "Malakhov, Vladimir"]
[Black "Shchekachev, Andrei"]
[Result "1/2-1/2"]
[ECO "A30"]
[WhiteElo "2662"]
[BlackElo "2524"]
[Annotator "RC"]
[PlyCount "81"]
[EventDate "2019.09.28"]
[EventType "team-tourn"]
[EventCountry "CRO"]
[SourceTitle "playchess.com"]
[Source "ChessBase"]
[SourceQuality "1"]
[TimeControl "40/5400+30:1800+30"]

1. Nf3 {[%emt 0:00:30]} Nf6 {[%emt 0:00:30]} 2. g3 {[%emt 0:00:30]} b6 {[%emt 0:00:00]} 3. Bg2 {[%emt 0:00:30]} Bb7 {[%emt 0:00:00]} 4. O-O {[%emt 0:00:30]} c5 {[%emt 0:05:30]} 5. c4 {[%emt 0:00:30]} g6 {[%emt 0:00:00]} 6. Nc3 {[%emt 0:01:30]} Bg7 {[%emt 0:00:00]} 7. Re1 {[%emt 0:00:30]} O-O {[%emt 0:14:30]} 8. e4 {[%emt 0:01:30]} Nc6 {[%emt 0:00:00]} 9. e5 {[%emt 0:16:30]} Ne8 {[%emt 0:04:00]} 10. d4 {[%emt 0:02:30]} Nxd4 {[%emt 0:00:30]} 11. Nxd4 {[%emt 0:00:30]} Bxg2 {[%emt 0:00:30]} 12. Kxg2 {[%emt 0:00:00]} cxd4 {[%emt 0:00:00]} 13. Qxd4 {[%emt 0:00:00]} d6 {[%emt 0:00:00]} 14. Bf4 {[%emt 0:00:30]} dxe5 {[%emt 0:08:30]} 15. Qxd8 {[%emt 0:00:30]} Rxd8 {[%emt 0:00:00]} 16. Bxe5 {[%emt 0:00:00]} e6 {[%emt 0:06:00]} 17. Bxg7 {[%emt 0:06:00]} Kxg7 {[%emt 0:00:00]} 18. Rad1 {[%emt 0:02:30]} Nf6 {[%emt 0:01:00]} 19. b3 {[%emt 0:04:30]} a6 {[%emt 0:05:30]} 20. Kf3 {[%emt 0:15:30]} Rfe8 {[%emt 0:03:30]} 21. g4 {[%emt 0:15:30]} h6 {[%emt 0:05:30]} 22. Rxd8 {[%emt 0:01:30]} Rxd8 {[%emt 0:00:00]} 23. Rd1 {[%emt 0:00:30]} Rxd1 {[%emt 0:04:00]} 24. Nxd1 {[%emt 0:00:00]} Nd7 {[%emt 0:00:30]} 25. Ke4 {[%emt 0:06:00]} f5+ {[%emt 0:06:30]} 26. gxf5 {[%emt 0:00:30]} gxf5+ {[%emt 0:00:00]} 27. Kd4 {[%emt 0:01:30]} Kf6 {[%emt 0:00:00]} 28. f4 {[%emt 0:10:08]} Nb8 {[%emt 0:09:30]} 29. Nb2 {[%emt 0:00:19]} Nc6+ {[%emt 0:00:30]} 30. Ke3 {[%emt 0:00:06]} Nb4 {[%emt 0:14:23]} 31. Na4 {[%emt 0:09:49]} b5 {[%emt 0:06:31]} 32. cxb5 {[%emt 0:03:58]} Nd5+ {[%emt 0:00:10]} 33. Kf3 {[%emt 0:00:05]} axb5 {[%emt 0:00:06]} 34. Nc5 {[%emt 0:00:03]} b4 {[%emt 0:02:07]} 35. Nd3 {[%emt 0:00:04]} Kg6 {[%emt 0:00:44]} 36. Kg3 {[%emt 0:00:38]} Kf6 {[%emt 0:00:41]} 37. Kf3 {[%emt 0:00:49]} Kg6 {[%emt 0:00:02]} 38. Kf2 {[%emt 0:01:10]} Kh5 {[%emt 0:01:16]} 39. Kg3 {[%emt 0:00:05]} Kg6 {[%emt 0:00:09]} 40. Ne5+ {[%emt 0:00:00]} Kf6 {[%emt 0:00:00]} 41. Nd3 {[%emt 0:08:46]} 1/2-1/2

[Event "28th CRO-chT 1A-Men 2019"]
[Site "Mali Losinj"]
[Date "2019.10.05"]
[Round "8.15"]
[White "Muse, Drazen"]
[Black "Kozul, Zdenko"]
[Result "0-1"]
[ECO "A06"]
[WhiteElo "2357"]
[BlackElo "2581"]
[Annotator "ChessBase"]
[PlyCount "50"]
[EventDate "2019.09.28"]
[EventType "team-tourn"]
[EventCountry "CRO"]
[SourceTitle "playchess.com"]
[Source "ChessBase"]
[SourceQuality "1"]
[TimeControl "40/5400+30:1800+30"]

1. Nf3 {[%emt 0:00:30]} Nf6 {[%emt 0:01:30]} 2. b3 {[%emt 0:00:30]} d5 {[%emt 0:11:30]} 3. Bb2 {[%emt 0:00:00]} Bg4 {[%emt 0:00:00]} 4. e3 {[%emt 0:00:00]} e6 {[%emt 0:02:00]} 5. h3 {[%emt 0:00:30]} Bxf3 {[%emt 0:00:30]} 6. Qxf3 {[%emt 0:00:30]} Be7 {[%emt 0:00:30]} 7. d3 {[%emt 0:00:30]} O-O {[%emt 0:00:30]} 8. Nd2 {[%emt 0:00:30]} c5 {[%emt 0:00:30]} 9. g4 {[%emt 0:00:30]} Nfd7 {[%emt 0:04:30]} 10. Bg2 {[%emt 0:00:30]} Nc6 {[%emt 0:00:30]} 11. Qe2 {[%emt 0:02:30]} Bf6 {[%emt 0:00:30]} 12. c3 {[%emt 0:01:30]} Qa5 {[%emt 0:13:30]} 13. d4 {[%emt 0:02:30]} cxd4 {[%emt 0:01:30]} 14. cxd4 {[%emt 0:00:30]} e5 {[%emt 0:01:30]} 15. dxe5 {[%emt 0:00:30]} Ndxe5 {[%emt 0:00:00]} 16. O-O {[%emt 0:00:30]} Nxg4 {[%emt 0:01:00]} 17. hxg4 {[%emt 0:06:30]} Bxb2 {[%emt 0:00:30]} 18. b4 {[%emt 0:02:30]} Nxb4 {[%emt 0:03:30]} 19. Nb3 {[%emt 0:10:30]} Qa3 {[%emt 0:03:30]} 20. Rab1 {[%emt 0:00:30]} Bf6 {[%emt 0:09:30]} 21. Qd2 {[%emt 0:20:30]} Nxa2 {[%emt 0:11:30]} 22. Nd4 {[%emt 0:02:30]} Bxd4 {[%emt 0:01:30]} 23. exd4 {[%emt 0:04:30]} Nc3 {[%emt 0:00:00]} 24. Ra1 {[%emt 0:05:30]} Qb3 {[%emt 0:03:00]} 25. Qd3 {[%emt 0:01:30]} b5 {[%emt 0:01:30]} 0-1

[Event "28th CRO-chT 1A-Men 2019"]
[Site "Mali Losinj"]
[Date "2019.10.05"]
[Round "8.16"]
[White "Palac, Mladen"]
[Black "Sindik, Ervin"]
[Result "1-0"]
[ECO "B51"]
[WhiteElo "2544"]
[BlackElo "2283"]
[Annotator "ChessBase"]
[PlyCount "79"]
[EventDate "2019.09.28"]
[EventType "team-tourn"]
[EventCountry "CRO"]
[SourceTitle "playchess.com"]
[Source "ChessBase"]
[SourceQuality "1"]
[TimeControl "40/5400+30:1800+30"]

1. Nf3 {[%emt 0:14:30]} c5 {[%emt 0:00:30]} 2. e4 {[%emt 0:00:30]} d6 {[%emt 0:00:30]} 3. Bb5+ {[%emt 0:00:30]} Nd7 {[%emt 0:00:00]} 4. O-O {[%emt 0:00:30]} a6 {[%emt 0:02:00]} 5. Bd3 {[%emt 0:00:00]} Ne5 {[%emt 0:02:30]} 6. Nxe5 {[%emt 0:02:00]} dxe5 {[%emt 0:00:00]} 7. a4 {[%emt 0:06:30]} Nf6 {[%emt 0:02:00]} 8. b3 {[%emt 0:09:30]} b6 {[%emt 0:06:30]} 9. Bb2 {[%emt 0:01:30]} Qc7 {[%emt 0:00:30]} 10. Na3 {[%emt 0:03:30]} Nd7 {[%emt 0:06:30]} 11. Nc4 {[%emt 0:05:30]} f6 {[%emt 0:00:00]} 12. f4 {[%emt 0:06:30]} exf4 {[%emt 0:06:00]} 13. e5 {[%emt 0:00:30]} g6 {[%emt 0:06:30]} 14. Qf3 {[%emt 0:07:30]} Bb7 {[%emt 0:02:30]} 15. Be4 {[%emt 0:00:30]} O-O-O {[%emt 0:18:30]} 16. e6 {[%emt 0:04:30]} Nb8 {[%emt 0:00:30]} 17. a5 {[%emt 0:04:30]} Bxe4 {[%emt 0:09:30]} 18. Qxe4 {[%emt 0:00:30]} Qc6 {[%emt 0:01:30]} 19. Nxb6+ {[%emt 0:06:30]} Kb7 {[%emt 0:00:30]} 20. Qe2 {[%emt 0:00:30]} g5 {[%emt 0:04:30]} 21. c4 {[%emt 0:01:30]} Qd6 {[%emt 0:09:30]} 22. Na4 {[%emt 0:05:21]} Nc6 {[%emt 0:01:26]} 23. Qf2 {[%emt 0:02:49]} Nd4 {[%emt 0:02:21]} 24. Bxd4 {[%emt 0:00:23]} cxd4 {[%emt 0:00:03]} 25. b4 {[%emt 0:09:53]} f5 {[%emt 0:09:51]} 26. b5 {[%emt 0:01:03]} Bg7 {[%emt 0:02:33]} 27. d3 {[%emt 0:01:08]} Ka7 {[%emt 0:02:41]} 28. Rfe1 {[%emt 0:02:46]} g4 {[%emt 0:00:58]} 29. c5 {[%emt 0:00:23]} g3 {[%emt 0:02:06]} 30. hxg3 {[%emt 0:00:57]} fxg3 {[%emt 0:00:03]} 31. Qxf5 {[%emt 0:00:03]} Qd5 {[%emt 0:00:32]} 32. b6+ {[%emt 0:00:58]} Kb7 {[%emt 0:00:37]} 33. c6+ {[%emt 0:01:19]} Kxc6 {[%emt 0:00:36]} 34. Qf4 {[%emt 0:01:14]} Qd6 {[%emt 0:01:01]} 35. Qf3+ {[%emt 0:00:11]} Qd5 {[%emt 0:00:18]} 36. Qxg3 {[%emt 0:00:40]} Rc8 {[%emt 0:01:36]} 37. Rec1+ {[%emt 0:00:31]} Kb5 {[%emt 0:00:46]} 38. Rcb1+ {[%emt 0:00:15]} Kc6 {[%emt 0:00:01]} 39. b7 {[%emt 0:00:11]} Rcg8 {[%emt 0:00:42]} 40. Rb6# {[%emt 0:00:00]} 1-0

[Event "28th CRO-chT 1A-Men 2019"]
[Site "Mali Losinj"]
[Date "2019.10.05"]
[Round "8.17"]
[White "Zivkovic, Nikola"]
[Black "Zelcic, Robert"]
[Result "0-1"]
[ECO "B14"]
[WhiteElo "2139"]
[BlackElo "2508"]
[Annotator "ChessBase"]
[PlyCount "108"]
[EventDate "2019.09.28"]
[EventType "team-tourn"]
[EventCountry "CRO"]
[SourceTitle "playchess.com"]
[Source "ChessBase"]
[SourceQuality "1"]
[TimeControl "40/5400+30:1800+30"]

1. e4 {[%emt 0:00:30]} c6 {[%emt 0:00:30]} 2. d4 {[%emt 0:00:00]} d5 {[%emt 0:00:00]} 3. exd5 {[%emt 0:00:00]} cxd5 {[%emt 0:00:00]} 4. c4 {[%emt 0:00:30]} Nf6 {[%emt 0:00:00]} 5. Nc3 {[%emt 0:00:00]} Nc6 {[%emt 0:00:00]} 6. Nf3 {[%emt 0:01:00]} g6 {[%emt 0:00:00]} 7. cxd5 {[%emt 0:01:30]} Nxd5 {[%emt 0:00:00]} 8. Bc4 {[%emt 0:01:30]} Nb6 {[%emt 0:00:30]} 9. Bb3 {[%emt 0:00:30]} Bg7 {[%emt 0:00:00]} 10. Be3 {[%emt 0:02:30]} O-O {[%emt 0:01:00]} 11. h3 {[%emt 0:02:30]} Na5 {[%emt 0:01:30]} 12. O-O {[%emt 0:00:30]} Nxb3 {[%emt 0:02:30]} 13. Qxb3 {[%emt 0:01:30]} Be6 {[%emt 0:07:30]} 14. Qb4 {[%emt 0:02:30]} h6 {[%emt 0:11:30]} 15. Rfd1 {[%emt 0:05:30]} a5 {[%emt 0:01:30]} 16. Qc5 {[%emt 0:01:30]} Nd5 {[%emt 0:00:30]} 17. Nxd5 {[%emt 0:01:30]} Bxd5 {[%emt 0:00:30]} 18. Ne5 {[%emt 0:01:30]} e6 {[%emt 0:03:30]} 19. Qc1 {[%emt 0:01:30]} Kh7 {[%emt 0:08:30]} 20. Qd2 {[%emt 0:01:30]} f6 {[%emt 0:08:30]} 21. Nd3 {[%emt 0:01:30]} g5 {[%emt 0:00:00]} 22. f3 {[%emt 0:02:30]} b6 {[%emt 0:05:00]} 23. b3 {[%emt 0:00:30]} Kh8 {[%emt 0:01:30]} 24. Rac1 {[%emt 0:02:30]} Qd7 {[%emt 0:04:30]} 25. Nf2 {[%emt 0:04:30]} a4 {[%emt 0:00:30]} 26. b4 {[%emt 0:01:30]} a3 {[%emt 0:00:30]} 27. h4 {[%emt 0:01:30]} Rfc8 {[%emt 0:04:30]} 28. hxg5 {[%emt 0:01:30]} hxg5 {[%emt 0:00:00]} 29. Ne4 {[%emt 0:07:30]} Rxc1 {[%emt 0:03:00]} 30. Rxc1 {[%emt 0:00:30]} Rc8 {[%emt 0:00:00]} 31. Rxc8+ {[%emt 0:08:30]} Qxc8 {[%emt 0:00:00]} 32. Qc3 {[%emt 0:00:30]} Qa8 {[%emt 0:01:30]} 33. Qc2 {[%emt 0:01:30]} Kg8 {[%emt 0:17:53]} 34. Ng3 {[%emt 0:02:30]} Qe8 {[%emt 0:00:51]} 35. Ne2 {[%emt 0:04:30]} Bf8 {[%emt 0:01:23]} 36. Bd2 {[%emt 0:02:30]} Kg7 {[%emt 0:00:52]} 37. Ng3 {[%emt 0:01:30]} Bd6 {[%emt 0:06:16]} 38. Ne4 {[%emt 0:01:30]} Be7 {[%emt 0:00:02]} 39. Qc7 {[%emt 0:12:30]} Bxa2 {[%emt 0:01:02]} 40. Qa7 {[%emt 0:00:00]} Qd8 {[%emt 0:00:00]} 41. Qxa3 {[%emt 0:02:00]} Bd5 {[%emt 0:07:11]} 42. Nf2 {[%emt 0:03:30]} Qc7 {[%emt 0:01:30]} 43. Qc3 {[%emt 0:03:30]} Qxc3 {[%emt 0:00:30]} 44. Bxc3 {[%emt 0:00:30]} Kf7 {[%emt 0:00:30]} 45. Nd1 {[%emt 0:00:30]} Ke8 {[%emt 0:00:30]} 46. Ne3 {[%emt 0:00:30]} Bb3 {[%emt 0:00:30]} 47. Nf1 {[%emt 0:05:30]} Kd7 {[%emt 0:01:30]} 48. Nd2 {[%emt 0:00:30]} Ba4 {[%emt 0:06:30]} 49. Nb1 {[%emt 0:00:30]} Kc6 {[%emt 0:00:30]} 50. Na3 {[%emt 0:00:30]} Kd5 {[%emt 0:00:00]} 51. Kf2 {[%emt 0:00:00]} f5 {[%emt 0:00:00]} 52. g3 {[%emt 0:03:00]} Bd6 {[%emt 0:00:30]} 53. Bd2 {[%emt 0:02:30]} Kxd4 {[%emt 0:01:30]} 54. Be3+ {[%emt 0:00:30]} Kd3 {[%emt 0:00:00]} 0-1

[Event "28th CRO-chT 1A-Men 2019"]
[Site "Mali Losinj"]
[Date "2019.10.05"]
[Round "8.18"]
[White "Jankovic, Alojzije"]
[Black "Raguz, Darko"]
[Result "1-0"]
[ECO "E04"]
[WhiteElo "2535"]
[BlackElo "2087"]
[Annotator "ChessBase"]
[PlyCount "59"]
[EventDate "2019.09.28"]
[EventType "team-tourn"]
[EventCountry "CRO"]
[SourceTitle "playchess.com"]
[Source "ChessBase"]
[SourceQuality "1"]
[TimeControl "40/5400+30:1800+30"]

1. d4 {[%emt 0:00:30]} d5 {[%emt 0:00:30]} 2. Nf3 {[%emt 0:00:00]} Nf6 {[%emt 0:00:00]} 3. c4 {[%emt 0:00:00]} e6 {[%emt 0:00:00]} 4. g3 {[%emt 0:00:30]} dxc4 {[%emt 0:01:30]} 5. Bg2 {[%emt 0:00:30]} c5 {[%emt 0:06:30]} 6. Nbd2 {[%emt 0:08:30]} Bd7 {[%emt 0:14:30]} 7. Ne5 {[%emt 0:09:30]} Nc6 {[%emt 0:00:30]} 8. Ndxc4 {[%emt 0:06:30]} cxd4 {[%emt 0:08:30]} 9. O-O {[%emt 0:00:30]} Nxe5 {[%emt 0:10:30]} 10. Nxe5 {[%emt 0:00:30]} Qb6 {[%emt 0:00:30]} 11. Bf4 {[%emt 0:11:30]} Bc5 {[%emt 0:03:30]} 12. b4 {[%emt 0:11:30]} Be7 {[%emt 0:04:30]} 13. Rc1 {[%emt 0:09:30]} Rd8 {[%emt 0:16:30]} 14. a4 {[%emt 0:21:08]} O-O {[%emt 0:07:30]} 15. b5 {[%emt 0:01:00]} d3 {[%emt 0:15:12]} 16. Nc4 {[%emt 0:03:48]} dxe2 {[%emt 0:01:37]} 17. Qxe2 {[%emt 0:00:06]} Bxb5 {[%emt 0:00:35]} 18. axb5 {[%emt 0:00:19]} Qxb5 {[%emt 0:00:01]} 19. Rb1 {[%emt 0:00:41]} Bb4 {[%emt 0:01:09]} 20. Qb2 {[%emt 0:01:45]} Qxc4 {[%emt 0:02:45]} 21. Qxb4 {[%emt 0:00:10]} Qxb4 {[%emt 0:00:26]} 22. Rxb4 {[%emt 0:00:02]} b6 {[%emt 0:00:05]} 23. Ra4 {[%emt 0:00:41]} Nd5 {[%emt 0:00:36]} 24. Bxd5 {[%emt 0:00:28]} Rxd5 {[%emt 0:00:30]} 25. Rxa7 {[%emt 0:00:06]} e5 {[%emt 0:00:28]} 26. Be3 {[%emt 0:00:22]} b5 {[%emt 0:00:22]} 27. Rb7 {[%emt 0:00:08]} Rfd8 {[%emt 0:00:12]} 28. Rb1 {[%emt 0:00:12]} Rd1+ {[%emt 0:00:04]} 29. Rxd1 {[%emt 0:00:03]} Rxd1+ {[%emt 0:00:04]} 30. Kg2 {[%emt 0:00:04]} 1-0

[Event "28th CRO-chT 1A-Men 2019"]
[Site "Mali Losinj"]
[Date "2019.10.05"]
[Round "8.19"]
[White "Indjic, Aleksandar"]
[Black "Saric, Ibro"]
[Result "1/2-1/2"]
[ECO "D94"]
[WhiteElo "2638"]
[BlackElo "2564"]
[Annotator "ChessBase"]
[PlyCount "53"]
[EventDate "2019.09.28"]
[EventType "team-tourn"]
[EventCountry "CRO"]
[SourceTitle "playchess.com"]
[Source "ChessBase"]
[SourceQuality "1"]
[TimeControl "40/5400+30:1800+30"]

1. Nf3 {[%emt 0:01:30]} d5 {[%emt 0:01:30]} 2. e3 {[%emt 0:00:30]} Nf6 {[%emt 0:00:30]} 3. c4 {[%emt 0:00:30]} c6 {[%emt 0:00:30]} 4. Nc3 {[%emt 0:00:00]} g6 {[%emt 0:00:30]} 5. d4 {[%emt 0:07:00]} Bg7 {[%emt 0:02:30]} 6. Be2 {[%emt 0:00:30]} O-O {[%emt 0:00:30]} 7. O-O {[%emt 0:00:30]} a6 {[%emt 0:04:30]} 8. a4 {[%emt 0:00:30]} a5 {[%emt 0:03:30]} 9. b3 {[%emt 0:06:30]} Bg4 {[%emt 0:04:30]} 10. Ba3 {[%emt 0:02:30]} Re8 {[%emt 0:00:30]} 11. Ne5 {[%emt 0:08:30]} Bxe2 {[%emt 0:02:30]} 12. Qxe2 {[%emt 0:00:30]} Ne4 {[%emt 0:07:30]} 13. Nxe4 {[%emt 0:10:30]} dxe4 {[%emt 0:00:30]} 14. f3 {[%emt 0:05:30]} f6 {[%emt 0:02:30]} 15. Ng4 {[%emt 0:00:00]} exf3 {[%emt 0:12:30]} 16. gxf3 {[%emt 0:00:00]} f5 {[%emt 0:07:30]} 17. Ne5 {[%emt 0:00:30]} Nd7 {[%emt 0:03:30]} 18. f4 {[%emt 0:03:30]} Nf6 {[%emt 0:01:30]} 19. Kh1 {[%emt 0:00:30]} Ne4 {[%emt 0:01:30]} 20. Rf3 {[%emt 0:00:30]} Bxe5 {[%emt 0:04:30]} 21. fxe5 {[%emt 0:00:00]} e6 {[%emt 0:00:00]} 22. Rf4 {[%emt 0:00:00]} Qd7 {[%emt 0:01:00]} 23. Rxe4 {[%emt 0:09:30]} fxe4 {[%emt 0:00:30]} 24. Bd6 {[%emt 0:00:30]} Rf8 {[%emt 0:08:30]} 25. Bxf8 {[%emt 0:02:30]} Rxf8 {[%emt 0:00:30]} 26. Rf1 {[%emt 0:00:30]} Qe7 {[%emt 0:01:30]} 27. Rf4 {[%emt 0:03:30]} 1/2-1/2

[Event "28th CRO-chT 1A-Men 2019"]
[Site "Mali Losinj"]
[Date "2019.10.05"]
[Round "8.20"]
[White "Saric, Ante"]
[Black "Sertic, Rudolf"]
[Result "1-0"]
[ECO "D12"]
[WhiteElo "2557"]
[BlackElo "2371"]
[Annotator "ChessBase"]
[PlyCount "107"]
[EventDate "2019.09.28"]
[EventType "team-tourn"]
[EventCountry "CRO"]
[SourceTitle "playchess.com"]
[Source "ChessBase"]
[SourceQuality "1"]
[TimeControl "40/5400+30:1800+30"]

1. Nf3 {[%emt 0:00:30]} d5 {[%emt 0:00:30]} 2. d4 {[%emt 0:00:30]} Nf6 {[%emt 0:00:00]} 3. c4 {[%emt 0:00:30]} c6 {[%emt 0:00:00]} 4. e3 {[%emt 0:00:00]} Bf5 {[%emt 0:00:30]} 5. Nc3 {[%emt 0:01:00]} e6 {[%emt 0:00:00]} 6. Bd3 {[%emt 0:02:30]} Bxd3 {[%emt 0:00:00]} 7. Qxd3 {[%emt 0:00:00]} Nbd7 {[%emt 0:00:30]} 8. O-O {[%emt 0:00:00]} Bd6 {[%emt 0:04:30]} 9. e4 {[%emt 0:05:30]} dxc4 {[%emt 0:00:30]} 10. Qxc4 {[%emt 0:00:00]} e5 {[%emt 0:00:00]} 11. Bg5 {[%emt 0:02:00]} O-O {[%emt 0:04:00]} 12. Rad1 {[%emt 0:01:30]} Qc7 {[%emt 0:09:30]} 13. d5 {[%emt 0:19:30]} c5 {[%emt 0:22:30]} 14. Nd2 {[%emt 0:07:30]} a6 {[%emt 0:01:30]} 15. a4 {[%emt 0:00:30]} Rfc8 {[%emt 0:01:30]} 16. Ra1 {[%emt 0:04:30]} b6 {[%emt 0:01:30]} 17. b3 {[%emt 0:04:30]} Qb7 {[%emt 0:08:30]} 18. Qe2 {[%emt 0:02:30]} Bc7 {[%emt 0:04:30]} 19. Ra2 {[%emt 0:04:30]} Ne8 {[%emt 0:06:30]} 20. Rfa1 {[%emt 0:06:30]} Nd6 {[%emt 0:08:30]} 21. Nc4 {[%emt 0:05:30]} Re8 {[%emt 0:00:30]} 22. g3 {[%emt 0:01:30]} Nf8 {[%emt 0:01:30]} 23. h4 {[%emt 0:01:30]} Qc8 {[%emt 0:01:30]} 24. Kg2 {[%emt 0:01:30]} Qd7 {[%emt 0:04:28]} 25. h5 {[%emt 0:01:30]} h6 {[%emt 0:00:06]} 26. Bd2 {[%emt 0:00:30]} Nh7 {[%emt 0:00:16]} 27. g4 {[%emt 0:05:30]} Bd8 {[%emt 0:07:06]} 28. f3 {[%emt 0:01:30]} Qc7 {[%emt 0:00:16]} 29. Be3 {[%emt 0:02:28]} Bg5 {[%emt 0:01:06]} 30. Bf2 {[%emt 0:00:11]} Bf4 {[%emt 0:02:59]} 31. Qd3 {[%emt 0:01:34]} Nf6 {[%emt 0:01:04]} 32. Ne2 {[%emt 0:00:55]} Nd7 {[%emt 0:03:03]} 33. Rc2 {[%emt 0:01:26]} Nxc4 {[%emt 0:03:30]} 34. bxc4 {[%emt 0:04:13]} Qd6 {[%emt 0:01:17]} 35. Rb2 {[%emt 0:01:34]} Bg5 {[%emt 0:01:03]} 36. Ng3 {[%emt 0:00:53]} g6 {[%emt 0:00:05]} 37. Rh1 {[%emt 0:01:42]} Kg7 {[%emt 0:00:16]} 38. Be3 {[%emt 0:00:44]} Bf4 {[%emt 0:00:24]} 39. Qd2 {[%emt 0:01:34]} Rh8 {[%emt 0:01:01]} 40. Qc3 {[%emt 0:00:00]} Bxg3 {[%emt 0:00:00]} 41. Kxg3 {[%emt 0:08:16]} g5 {[%emt 0:02:00]} 42. a5 {[%emt 0:01:30]} Rhb8 {[%emt 0:18:02]} 43. Rhb1 {[%emt 0:05:30]} bxa5 {[%emt 0:00:10]} 44. Qxa5 {[%emt 0:02:30]} Rc8 {[%emt 0:03:17]} 45. Rb7 {[%emt 0:00:30]} Rab8 {[%emt 0:07:12]} 46. Rxb8 {[%emt 0:08:33]} Rxb8 {[%emt 0:00:06]} 47. Rxb8 {[%emt 0:00:17]} Qxb8 {[%emt 0:00:08]} 48. Qxa6 {[%emt 0:00:58]} Qb3 {[%emt 0:00:44]} 49. Bf2 {[%emt 0:01:05]} Nf6 {[%emt 0:00:28]} 50. Kg2 {[%emt 0:01:00]} Qd3 {[%emt 0:02:09]} 51. Qa1 {[%emt 0:04:20]} Nxg4 {[%emt 0:00:35]} 52. fxg4 {[%emt 0:00:29]} Qxe4+ {[%emt 0:00:06]} 53. Kh2 {[%emt 0:00:37]} Kh7 {[%emt 0:02:44]} 54. Qd1 {[%emt 0:01:38]} 1-0

[Event "28th CRO-chT 1A-Men 2019"]
[Site "Mali Losinj"]
[Date "2019.10.05"]
[Round "8.21"]
[White "Biti, Ozren"]
[Black "Galyas, Miklos"]
[Result "1/2-1/2"]
[ECO "B07"]
[WhiteElo "2366"]
[BlackElo "2476"]
[Annotator "ChessBase"]
[PlyCount "73"]
[EventDate "2019.09.28"]
[EventType "team-tourn"]
[EventCountry "CRO"]
[SourceTitle "playchess.com"]
[Source "ChessBase"]
[SourceQuality "1"]
[TimeControl "40/5400+30:1800+30"]

1. e4 {[%emt 0:00:30]} d6 {[%emt 0:00:30]} 2. d4 {[%emt 0:00:00]} Nf6 {[%emt 0:00:00]} 3. Nc3 {[%emt 0:00:00]} g6 {[%emt 0:00:00]} 4. Be3 {[%emt 0:00:30]} c6 {[%emt 0:00:30]} 5. Qd2 {[%emt 0:02:30]} Nbd7 {[%emt 0:00:30]} 6. Nf3 {[%emt 0:02:30]} b5 {[%emt 0:12:30]} 7. e5 {[%emt 0:13:30]} dxe5 {[%emt 0:08:30]} 8. dxe5 {[%emt 0:00:30]} Ng4 {[%emt 0:00:00]} 9. e6 {[%emt 0:01:30]} fxe6 {[%emt 0:01:00]} 10. Ng5 {[%emt 0:07:30]} Nxe3 {[%emt 0:15:30]} 11. Qxe3 {[%emt 0:04:30]} Bh6 {[%emt 0:02:30]} 12. Qd4 {[%emt 0:18:30]} e5 {[%emt 0:03:30]} 13. Qh4 {[%emt 0:00:30]} Bxg5 {[%emt 0:01:30]} 14. Qxg5 {[%emt 0:00:30]} Nf6 {[%emt 0:05:30]} 15. Bd3 {[%emt 0:11:30]} Qd4 {[%emt 0:07:30]} 16. O-O {[%emt 0:07:30]} Qf4 {[%emt 0:04:30]} 17. h4 {[%emt 0:01:30]} Bf5 {[%emt 0:05:30]} 18. g3 {[%emt 0:13:25]} Qxg5 {[%emt 0:01:30]} 19. hxg5 {[%emt 0:00:05]} Nd7 {[%emt 0:04:30]} 20. Ne4 {[%emt 0:06:18]} h6 {[%emt 0:05:39]} 21. Rfe1 {[%emt 0:01:13]} hxg5 {[%emt 0:02:44]} 22. Nxg5 {[%emt 0:00:11]} Rh5 {[%emt 0:00:49]} 23. Nf3 {[%emt 0:00:41]} O-O-O {[%emt 0:06:31]} 24. Kg2 {[%emt 0:04:32]} Rf8 {[%emt 0:01:13]} 25. Nh4 {[%emt 0:00:59]} Bxd3 {[%emt 0:01:58]} 26. cxd3 {[%emt 0:00:04]} Rf6 {[%emt 0:00:24]} 27. Rac1 {[%emt 0:01:36]} Rh8 {[%emt 0:02:07]} 28. Re3 {[%emt 0:00:33]} Rhf8 {[%emt 0:00:18]} 29. Rc2 {[%emt 0:00:26]} Kc7 {[%emt 0:01:32]} 30. Nf3 {[%emt 0:00:13]} Rf5 {[%emt 0:01:29]} 31. Nh4 {[%emt 0:00:26]} R5f6 {[%emt 0:01:22]} 32. Nf3 {[%emt 0:00:05]} Rf5 {[%emt 0:00:37]} 33. Nh4 {[%emt 0:00:05]} R5f6 {[%emt 0:01:15]} 34. Nf3 {[%emt 0:00:30]} e4 {[%emt 0:00:33]} 35. d4 {[%emt 0:00:30]} R6f7 {[%emt 0:00:33]} 36. Nh4 {[%emt 0:00:30]} Rf6 {[%emt 0:00:48]} 37. Nf3 {[%emt 0:01:02]} 1/2-1/2

[Event "28th CRO-chT 1A-Men 2019"]
[Site "Mali Losinj"]
[Date "2019.10.05"]
[Round "8.22"]
[White "Plenca, Julijan"]
[Black "Ascic, Pero"]
[Result "1-0"]
[ECO "C56"]
[WhiteElo "2423"]
[BlackElo "2318"]
[Annotator "ChessBase"]
[PlyCount "79"]
[EventDate "2019.09.28"]
[EventType "team-tourn"]
[EventCountry "CRO"]
[SourceTitle "playchess.com"]
[Source "ChessBase"]
[SourceQuality "1"]
[TimeControl "40/5400+30:1800+30"]

1. e4 {[%emt 0:00:30]} e5 {[%emt 0:00:30]} 2. Bc4 {[%emt 0:00:00]} Nf6 {[%emt 0:01:30]} 3. d4 {[%emt 0:00:00]} Nc6 {[%emt 0:15:30]} 4. Nf3 {[%emt 0:00:30]} exd4 {[%emt 0:00:30]} 5. e5 {[%emt 0:00:00]} d5 {[%emt 0:00:30]} 6. Bb5 {[%emt 0:00:00]} Ne4 {[%emt 0:05:30]} 7. Nxd4 {[%emt 0:00:30]} Bd7 {[%emt 0:00:30]} 8. Bxc6 {[%emt 0:00:00]} bxc6 {[%emt 0:03:30]} 9. O-O {[%emt 0:00:00]} Be7 {[%emt 0:16:30]} 10. f3 {[%emt 0:00:30]} Nc5 {[%emt 0:09:30]} 11. f4 {[%emt 0:00:30]} Ne4 {[%emt 0:01:30]} 12. Nc3 {[%emt 0:07:30]} Nxc3 {[%emt 0:14:30]} 13. bxc3 {[%emt 0:00:00]} c5 {[%emt 0:01:30]} 14. Ne2 {[%emt 0:01:00]} Bc6 {[%emt 0:04:30]} 15. f5 {[%emt 0:00:00]} Bg5 {[%emt 0:00:00]} 16. f6 {[%emt 0:03:00]} gxf6 {[%emt 0:01:00]} 17. Bxg5 {[%emt 0:00:30]} fxg5 {[%emt 0:00:30]} 18. Ng3 {[%emt 0:00:00]} d4 {[%emt 0:10:05]} 19. Qg4 {[%emt 0:11:00]} Bd7 {[%emt 0:03:08]} 20. Qf3 {[%emt 0:00:30]} O-O {[%emt 0:05:08]} 21. Ne4 {[%emt 0:02:30]} Qe7 {[%emt 0:01:58]} 22. Nf6+ {[%emt 0:00:30]} Kg7 {[%emt 0:00:06]} 23. Qh5 {[%emt 0:00:30]} h6 {[%emt 0:00:08]} 24. Rae1 {[%emt 0:00:30]} Be6 {[%emt 0:00:24]} 25. h4 {[%emt 0:00:30]} Rh8 {[%emt 0:01:31]} 26. hxg5 {[%emt 0:02:30]} hxg5 {[%emt 0:00:01]} 27. Qxg5+ {[%emt 0:00:00]} Kf8 {[%emt 0:00:07]} 28. Rf4 {[%emt 0:01:00]} Qd8 {[%emt 0:00:39]} 29. Rd1 {[%emt 0:00:30]} c6 {[%emt 0:01:09]} 30. cxd4 {[%emt 0:04:30]} Rb8 {[%emt 0:01:29]} 31. c4 {[%emt 0:04:30]} cxd4 {[%emt 0:01:14]} 32. Rfxd4 {[%emt 0:00:30]} Qe7 {[%emt 0:00:11]} 33. Rh4 {[%emt 0:02:30]} Qc5+ {[%emt 0:00:08]} 34. Kh1 {[%emt 0:00:30]} Rxh4+ {[%emt 0:00:56]} 35. Qxh4 {[%emt 0:00:00]} Qe3 {[%emt 0:00:08]} 36. c5 {[%emt 0:09:00]} a5 {[%emt 0:00:43]} 37. a4 {[%emt 0:01:30]} Bf5 {[%emt 0:00:28]} 38. Qh8+ {[%emt 0:00:30]} Ke7 {[%emt 0:00:13]} 39. Ng8+ {[%emt 0:00:30]} Rxg8 {[%emt 0:01:35]} 40. Qf6+ {[%emt 0:00:00]} 1-0